fUST/lending_fUST_20250617
["ID","MTS","AMOUNT","RATE_DAILY","PERIOD"]
[366244471,1750162235219,-500.0,0.00024109,6]
[366244472,1750162235228,-490.70196808,0.00024109,6]
[366244473,1750162235238,-460.0,0.00024109,6]
[366244474,1750162235247,-486.75264361,0.00024109,6]
[366244475,1750162235257,-460.0,0.00024109,6]
[366244476,1750162235266,-460.0,0.00024109,6]
[366244477,1750162235276,-460.0,0.00024109,6]
[366244478,1750162235287,-433.05204463,0.00024109,6]
[366244479,1750162235296,-460.0,0.00024109,6]
[366244480,1750162235305,-460.0,0.00024109,6]
[366244481,1750162235315,-438.90392501,0.00024109,6]
[366244482,1750162235325,-460.0,0.00024109,6]
[366244483,1750162235335,-460.0,0.00024109,6]
[366244484,1750162235350,-460.0,0.00024109,6]
[366244485,1750162235360,-438.43820583,0.00024109,6]
[366244486,1750162235369,-460.0,0.00024109,6]
[366244487,1750162235378,-460.0,0.00024109,6]
[366244488,1750162235389,-460.0,0.00024109,6]
[366244489,1750162235401,-460.0,0.00024109,6]
[366244490,1750162235410,-460.0,0.00024109,6]
[366244491,1750162235420,-442.51733654,0.00024109,6]
[366244492,1750162235431,-200.0,0.00024109,6]
[366244493,1750162235440,-500.0,0.00024109,6]
[366244494,1750162235450,-433.22712189,0.00024109,6]
[366244495,1750162235459,-520.01076697,0.00024109,6]
[366244496,1750162235469,-460.0,0.00024109,6]
[366244497,1750162235479,-305.96904725,0.00024109,6]
[366244498,1750162235488,-460.0,0.00024109,6]
[366244499,1750162235498,-443.29692538,0.00024109,6]
[366244500,1750162235508,-465.38871697,0.00024109,6]
[366244501,1750162235519,-460.0,0.00024109,6]
[366244502,1750162235530,-460.0,0.00024109,6]
[366244503,1750162235540,-460.0,0.00024109,6]
[366244504,1750162235551,-449.94022959,0.00024109,6]
[366244505,1750162235562,-460.0,0.00024109,6]
[366244506,1750162235572,-460.0,0.00024109,6]
[366244507,1750162235581,-406.15258872,0.00024109,6]
[366244508,1750162235591,-584.04668163,0.00024109,6]
[366244509,1750162235600,-460.0,0.00024109,6]
[366244510,1750162235610,-460.0,0.00024109,6]
[366244511,1750162235620,-433.67760469,0.00024109,6]
[366244512,1750162235629,-425.35812512,0.00024109,6]
[366244513,1750162235639,-460.0,0.00024109,6]
[366244514,1750162235649,-200.24542599,0.00024109,2]
[366244515,1750162235658,-460.0,0.00024109,6]
[366244516,1750162235669,-460.0,0.00024109,2]
[366244517,1750162235680,-275.0041682,0.00024109,6]
[366244518,1750162235690,-460.0,0.00024109,6]
[366244519,1750162235699,-455.64726607,0.00024109,6]
[366244520,1750162235709,-319.18376247,0.00024109,6]
[366244521,1750162235719,-460.0,0.00024109,6]
[366244522,1750162235729,-460.0,0.00024109,6]
[366244523,1750162235740,-460.0,0.00024109,6]
[366244524,1750162235749,-460.0,0.00024109,6]
[366244525,1750162235759,-453.76434069,0.00024109,6]
[366244526,1750162235770,-460.0,0.00024109,6]
[366244527,1750162235781,-562.82816146,0.00024109,6]
[366244528,1750162235796,-2216.71,0.00024109,2]
[366244529,1750162235806,-460.0,0.00024109,6]
[366244530,1750162235816,-460.0,0.00024109,6]
[366244531,1750162235825,-460.0,0.00024109,6]
[366244532,1750162235836,-460.0,0.00024109,6]
[366244533,1750162235845,-439.89440019,0.00024109,6]
[366244534,1750162235855,-460.0,0.00024109,6]
[366244535,1750162235865,-460.0,0.00024109,6]
[366244536,1750162235876,-460.0,0.00024109,6]
[366244537,1750162235886,-460.0,0.00024109,6]
[366244538,1750162235896,-383.94054451,0.00024109,6]
[366244539,1750162235906,-460.0,0.00024109,6]
[366244540,1750162235917,-460.0,0.00024109,6]
[366244541,1750162235927,-460.0,0.00024109,6]
[366244542,1750162235937,-285.238116,0.00024109,6]
[366244543,1750162235947,-460.0,0.00024109,6]
[366244544,1750162235956,-460.0,0.00024109,6]
[366244545,1750162235965,-434.54454557,0.00024109,6]
[366244546,1750162235976,-460.0,0.00024109,6]
[366244547,1750162235986,-500.0,0.00024109,6]
[366244548,1750162235996,-460.0,0.00024109,6]
[366244549,1750162236006,-460.0,0.00024109,6]
[366244550,1750162236016,-400.0,0.00024109,6]
[366244551,1750162236026,-460.0,0.00024109,6]
[366244552,1750162236037,-460.0,0.00024109,6]
[366244553,1750162236046,-577.76520302,0.00024109,6]
[366244554,1750162236056,-460.0,0.00024109,6]
[366244555,1750162236066,-420.0,0.00024109,6]
[366244556,1750162236075,-460.0,0.00024109,6]
[366244557,1750162236085,-460.0,0.00024109,6]
[366244558,1750162236095,-441.17735635,0.00024109,6]
[366244559,1750162236109,-460.42567803,0.00024109,6]
[366244560,1750162236119,-460.0,0.00024109,6]
[366244561,1750162236129,-460.0,0.00024109,6]
[366244562,1750162236138,-460.0,0.00024109,6]
[366244563,1750162236148,-437.42392792,0.00024109,6]
[366244564,1750162236158,-460.0,0.00024109,6]
[366244565,1750162236168,-460.0,0.00024109,6]
[366244566,1750162236178,-460.0,0.00024109,6]
[366244567,1750162236188,-434.02138401,0.00024109,6]
[366244568,1750162236198,-460.0,0.00024109,6]
[366244569,1750162236208,-437.22516294,0.00024109,6]
[366244570,1750162236218,-460.0,0.00024109,6]
[366244571,1750162236228,-451.62645916,0.00024109,6]
[366244572,1750162236238,-460.0,0.00024109,6]
[366244573,1750162236247,-460.0,0.00024109,6]
[366244574,1750162236257,-460.0,0.00024109,6]
[366244575,1750162236267,-221.81807235,0.00024109,6]
[366244576,1750162236277,-460.0,0.00024109,6]
[366244577,1750162236287,-460.0,0.00024109,6]
[366244578,1750162236297,-433.37646461,0.00024109,6]
[366244579,1750162236306,-460.0,0.00024109,6]
[366244580,1750162236316,-460.0,0.00024109,6]
[366244581,1750162236325,-460.0,0.00024109,6]
[366244582,1750162236335,-182.06465877,0.00024109,6]
[366244583,1750162236344,-460.0,0.00024109,6]
[366244584,1750162236354,-460.0,0.00024109,6]
[366244585,1750162236364,-460.0,0.00024109,6]
[366244586,1750162236373,-435.1746248,0.00024109,6]
[366244587,1750162236383,-435.34251866,0.00024109,6]
[366244588,1750162236393,-445.38333478,0.00024109,6]
[366244589,1750162236403,-460.0,0.00024109,6]
[366244590,1750162236415,-460.0,0.00024109,6]
[366244591,1750162236425,-404.99844077,0.00024109,6]
[366244592,1750162236435,-460.0,0.00024109,6]
[366244593,1750162236445,-460.41833689,0.00024109,6]
[366244594,1750162236455,-460.0,0.00024109,6]
[366244595,1750162236465,-462.47035055,0.00024109,6]
[366244596,1750162236475,-460.0,0.00024109,6]
[366244597,1750162236485,-460.0,0.00024109,6]
[366244598,1750162236495,-460.0,0.00024109,6]
[366244599,1750162236505,-436.32285431,0.00024109,6]
[366244600,1750162236515,-460.0,0.00024109,6]
[366244601,1750162236524,-460.0,0.00024109,6]
[366244602,1750162236534,-460.0,0.00024109,6]
[366244603,1750162236544,-500.0,0.00024109,6]
[366244604,1750162236554,-460.0,0.00024109,6]
[366244605,1750162236564,-460.0,0.00024109,6]
[366244606,1750162236574,-444.0968643,0.00024109,6]
[366244607,1750162236584,-1296.25,0.00024109,6]
[366244608,1750162236594,-460.0,0.00024109,6]
[366244609,1750162236604,-460.0,0.00024109,6]
[366244610,1750162236613,-460.0,0.00024109,6]
[366244611,1750162236623,-430.0,0.00024109,6]
[366244612,1750162236633,-460.0,0.00024109,6]
[366244613,1750162236642,-431.42954615,0.00024109,6]
[366244614,1750162236652,-460.0,0.00024109,6]
[366244615,1750162236661,-588.32,0.00024109,6]
[366244616,1750162236671,-460.0,0.00024109,6]
[366244617,1750162236682,-460.0,0.00024109,6]
[366244618,1750162236691,-460.0,0.00024109,6]
[366244619,1750162236701,-460.0,0.00024109,6]
[366244620,1750162236711,-460.0,0.00024109,6]
[366244621,1750162236721,-480.40700973,0.00024109,6]
[366244622,1750162236731,-460.0,0.00024109,6]
[366244623,1750162236741,-409.20762032,0.00024109,6]
[366244624,1750162236751,-460.0,0.00024109,6]
[366244625,1750162236761,-460.0,0.00024109,6]
[366244626,1750162236771,-460.0,0.00024109,6]
[366244627,1750162236992,-460.0,0.00024109,6]
[366244628,1750162237002,-364.41074526,0.00024109,6]
[366244629,1750162237012,-460.0,0.00024109,2]
[366244630,1750162237021,-460.0,0.00024109,6]
[366244631,1750162237032,-440.0,0.00024109,6]
[366244632,1750162237043,-460.0,0.00024109,6]
[366244633,1750162237052,-569.26216156,0.00024109,6]
[366244634,1750162237062,-460.0,0.00024109,6]
[366244635,1750162237072,-460.0,0.00024109,6]
[366244636,1750162237091,-460.0,0.00024109,6]
[366244637,1750162237106,-460.0,0.00024109,6]
[366244638,1750162237261,-460.0,0.00024109,6]
[366244639,1750162237271,-460.0,0.00024109,6]
[366244640,1750162237282,-460.0,0.00024109,6]
[366244641,1750162237292,-460.0,0.00024109,6]
[366244642,1750162237302,-460.0,0.00024109,6]
[366244643,1750162237312,-500.0,0.00024109,6]
[366244644,1750162237322,-398.21962188,0.00024109,6]
[366244645,1750162237332,-451.171914,0.00024109,6]
[366244646,1750162237341,-433.64590077,0.00024109,6]
[366244647,1750162237351,-460.0,0.00024109,6]
[366244648,1750162237361,-460.0,0.00024109,6]
[366244649,1750162237371,-460.0,0.00024109,6]
[366244650,1750162237380,-305.04497093,0.00024109,6]
[366244651,1750162237390,-424.33632459,0.00024109,6]
[366244652,1750162237400,-460.0,0.00024109,6]
[366244653,1750162237412,-460.0,0.00024109,6]
[366244654,1750162237422,-358.04850064,0.00024109,6]
[366244655,1750162237431,-460.0,0.00024109,6]
[366244656,1750162237441,-429.45133224,0.00024109,6]
[366244657,1750162237451,-549.29,0.00024109,6]
[366244658,1750162237460,-310.80244535,0.00024109,6]
[366244659,1750162237469,-460.0,0.00024109,6]
[366244660,1750162237479,-460.0,0.00024109,6]
[366244661,1750162237489,-460.0,0.00024109,6]
[366244662,1750162237499,-381.34097997,0.00024109,6]
[366244663,1750162237509,-440.43125307,0.00024109,6]
[366244664,1750162237518,-434.31279087,0.00024109,6]
[366244665,1750162237528,-460.0,0.00024109,6]
[366244666,1750162237538,-460.0,0.00024109,6]
[366244667,1750162237548,-401.8510722,0.00024109,6]
[366244668,1750162237558,-460.0,0.00024109,6]
[366244669,1750162237569,-443.42039174,0.00024109,6]
[366244670,1750162237578,-460.0,0.00024109,6]
[366244671,1750162237588,-404.3863648,0.00024109,6]
[366244672,1750162237598,-460.0,0.00024109,6]
[366244673,1750162237609,-460.0,0.00024109,6]
[366244674,1750162237621,-460.0,0.00024109,6]
[366244675,1750162237642,-460.0,0.00024109,6]
[366244676,1750162237654,-460.0,0.00024109,6]
[366244677,1750162237664,-444.04010613,0.00024109,6]
[366244678,1750162237674,-403.56006523,0.00024109,6]
[366244679,1750162237684,-460.0,0.00024109,6]
[366244680,1750162237693,-460.0,0.00024109,6]
[366244681,1750162237703,-460.0,0.00024109,6]
[366244682,1750162237716,-460.0,0.00024109,6]
[366244683,1750162237725,-432.64442935,0.00024109,6]
[366244684,1750162237735,-432.4329443,0.00024109,6]
[366244685,1750162237744,-350.35899809,0.00024109,6]
[366244686,1750162237753,-442.28105359,0.00024109,6]
[366244687,1750162237763,-463.33223801,0.00024109,6]
[366244688,1750162237773,-460.0,0.00024109,6]
[366244689,1750162237786,-460.0,0.00024109,6]
[366244690,1750162237796,-460.0,0.00024109,6]
[366244691,1750162237807,-444.52894445,0.00024109,6]
[366244692,1750162237816,-536.55517407,0.00024109,6]
[366244693,1750162237826,-442.12793786,0.00024109,6]
[366244694,1750162237835,-314.47594008,0.00024109,6]
[366244695,1750162237845,-460.0,0.00024109,6]
[366244696,1750162237855,-460.0,0.00024109,6]
[366244697,1750162237864,-284.2635297,0.00024109,6]
[366244698,1750162237874,-460.0,0.00024109,6]
[366244699,1750162237884,-460.0,0.00024109,6]
[366244700,1750162237893,-447.16049378,0.00024109,6]
[366244701,1750162237904,-460.0,0.00024109,6]
[366244702,1750162237913,-460.0,0.00024109,6]
[366244704,1750162237923,-971.94,0.00024109,6]
[366244705,1750162237934,-460.0,0.00024109,6]
[366244706,1750162237943,-460.0,0.00024109,6]
[366244707,1750162237954,-460.0,0.00024109,6]
[366244708,1750162237964,-460.0,0.00024109,6]
[366244709,1750162237974,-460.0,0.00024109,6]
[366244711,1750162237984,-431.6843345,0.00024109,6]
[366244713,1750162237994,-460.0,0.00024109,6]
[366244715,1750162238004,-460.0,0.00024109,6]
[366244716,1750162238013,-460.0,0.00024109,6]
[366244717,1750162238023,-407.76814739,0.00024109,6]
[366244718,1750162238033,-460.0,0.00024109,6]
[366244719,1750162238043,-446.29272819,0.00024109,6]
[366244720,1750162238053,-460.0,0.00024109,6]
[366244721,1750162238062,-460.0,0.00024109,6]
[366244722,1750162238072,-460.0,0.00024109,6]
[366244723,1750162238082,-460.0,0.00024109,6]
[366244725,1750162238091,-432.35760852,0.00024109,6]
[366244726,1750162238101,-460.0,0.00024109,6]
[366244727,1750162238110,-425.65514989,0.00024109,6]
[366244728,1750162238120,-291.68452384,0.00024109,6]
[366244729,1750162238130,-400.0,0.00024109,6]
[366244731,1750162238140,-500.0,0.00024109,6]
[366244734,1750162238150,-500.0,0.00024109,6]
[366244736,1750162238159,-500.0,0.00024109,6]
[366244738,1750162238168,-500.0,0.00024109,6]
[366244739,1750162238178,-500.0,0.00024109,6]
[366244741,1750162238188,-433.26988717,0.00024109,6]
[366244742,1750162238198,-500.0,0.00024109,6]
[366244743,1750162238208,-500.0,0.00024109,6]
[366244744,1750162238218,-221.59338443,0.00024109,6]
[366244745,1750162238227,-460.0,0.00024109,6]
[366244746,1750162238237,-460.0,0.00024109,6]
[366244747,1750162238247,-460.0,0.00024109,6]
[366244748,1750162238257,-460.0,0.00024109,6]
[366244749,1750162238267,-460.0,0.00024109,6]
[366244750,1750162238277,-470.47619626,0.00024109,6]
[366244751,1750162238287,-434.88950909,0.00024109,6]
[366244752,1750162238296,-460.0,0.00024109,6]
[366244753,1750162238306,-463.32329641,0.00024109,6]
[366244754,1750162238316,-460.0,0.00024109,6]
[366244755,1750162238326,-442.47016826,0.00024109,6]
[366244756,1750162238335,-468.748852,0.00024109,6]
[366244757,1750162238345,-460.0,0.00024109,6]
[366244758,1750162238355,-339.27967547,0.00024109,6]
[366244759,1750162238364,-460.0,0.00024109,6]
[366244760,1750162238374,-460.0,0.00024109,6]
[366244761,1750162238383,-442.78334714,0.00024109,6]
[366244762,1750162238393,-433.52480359,0.00024109,6]
[366244763,1750162238403,-2170.27,0.00024109,2]
[366244764,1750162238413,-433.2082441,0.00024109,6]
[366244765,1750162238423,-460.0,0.00024109,6]
[366244766,1750162238433,-460.0,0.00024109,6]
[366244767,1750162238443,-460.0,0.00024109,6]
[366244768,1750162238452,-433.86851208,0.00024109,6]
[366244769,1750162238462,-460.25764798,0.00024109,6]
[366244770,1750162238472,-879.44,0.00024109,6]
[366244772,1750162238482,-460.0,0.00024109,6]
[366244774,1750162238492,-460.0,0.00024109,6]
[366244775,1750162238502,-460.0,0.00024109,6]
[366244778,1750162238511,-460.0,0.00024109,6]
[366244780,1750162238521,-460.0,0.00024109,6]
[366244781,1750162238531,-460.0,0.00024109,6]
[366244783,1750162238541,-460.0,0.00024109,6]
[366244785,1750162238551,-460.0,0.00024109,6]
[366244788,1750162238560,-500.0,0.00024109,6]
[366244790,1750162238571,-460.0,0.00024109,6]
[366244792,1750162238581,-500.0,0.00024109,6]
[366244794,1750162238592,-500.0,0.00024109,6]
[366244795,1750162238608,-500.0,0.00024109,6]
[366244798,1750162238619,-460.0,0.00024109,6]
[366244799,1750162238630,-500.0,0.00024109,6]
[366244802,1750162238639,-500.0,0.00024109,6]
[366244805,1750162238649,-500.0,0.00024109,6]
[366244810,1750162238660,-500.0,0.00024109,6]
[366244812,1750162238670,-370.03493039,0.00024109,6]
[366244813,1750162238679,-233.23417175,0.00024109,6]
[366244815,1750162238689,-460.0,0.00024109,6]
[366244817,1750162238698,-460.0,0.00024109,6]
[366244819,1750162238707,-321.96523439,0.00024109,6]
[366244821,1750162238717,-460.0,0.00024109,6]
[366244822,1750162238727,-460.0,0.00024109,6]
[366244824,1750162238737,-437.58549247,0.00024109,6]
[366244826,1750162238747,-460.0,0.00024109,6]
[366244828,1750162238756,-460.0,0.00024109,6]
[366244829,1750162238766,-460.66453452,0.00024109,6]
[366244830,1750162238775,-460.0,0.00024109,6]
[366244832,1750162238790,-409.13848503,0.00024109,6]
[366244834,1750162238800,-460.0,0.00024109,6]
[366244836,1750162238810,-460.0,0.00024109,6]
[366244837,1750162238820,-460.0,0.00024109,6]
[366244840,1750162238831,-196.19508134,0.00024109,6]
[366244842,1750162238841,-304.80416743,0.00024109,6]
[366244843,1750162238852,-435.93005971,0.00024109,6]
[366244845,1750162238863,-460.0,0.00024109,6]
[366244847,1750162238873,-460.0,0.00024109,6]
[366244849,1750162238883,-460.0,0.00024109,6]
[366244851,1750162238892,-424.22232644,0.00024109,6]
[366244853,1750162238903,-151.0,0.00024109,7]
[366244855,1750162238912,-460.0,0.00024109,6]
[366244856,1750162238922,-460.0,0.00024109,6]
[366244858,1750162238932,-417.74314115,0.00024109,6]
[366244860,1750162238942,-342.04618298,0.00024109,6]
[366244862,1750162238952,-958.56,0.00024109,6]
[366244864,1750162238961,-460.0,0.00024109,6]
[366244866,1750162238970,-460.0,0.00024109,6]
[366244868,1750162238980,-460.0,0.00024109,6]
[366244870,1750162238990,-460.0,0.00024109,6]
[366244872,1750162239000,-460.0,0.00024109,6]
[366244874,1750162239010,-987.6,0.00024109,6]
[366244876,1750162239019,-426.03708761,0.00024109,6]
[366244877,1750162239029,-460.0,0.00024109,6]
[366244879,1750162239039,-460.0,0.00024109,6]
[366244881,1750162239048,-460.0,0.00024109,6]
[366244883,1750162239058,-999.21,0.00024109,6]
[366244892,1750162239168,-460.0,0.00024109,6]
[366244894,1750162239179,-460.0,0.00024109,6]
[366244895,1750162239189,-460.0,0.00024109,6]
[366244896,1750162239200,-460.0,0.00024109,6]
[366244897,1750162239209,-460.0,0.00024109,6]
[366244898,1750162239219,-87.27568119,0.00024109,7]
[366244899,1750162239252,-66.30967281,0.00024109,7]
[366244900,1750162239262,-151.0,0.00024109,7]
[366244901,1750162239273,-460.0,0.00024109,6]
[366244902,1750162239282,-846.13,0.00024109,6]
[366244903,1750162239292,-460.0,0.00024109,6]
[366244904,1750162239302,-460.0,0.00024109,6]
[366244905,1750162239312,-732.25,0.00024109,6]
[366244906,1750162239322,-460.0,0.00024109,6]
[366244907,1750162239332,-460.0,0.00024109,6]
[366244908,1750162239342,-460.0,0.00024109,6]
[366244909,1750162239352,-460.0,0.00024109,6]
[366244910,1750162239362,-271.30732719,0.00024109,6]
[366244919,1750162240247,-610.02460827,0.00019938,2]
[366244920,1750162240263,-684.13106432,0.00019938,2]
[366244921,1750162240276,-468.55808915,0.00019938,2]
[366244922,1750162240292,-3237.28623826,0.00019938,2]
[366244923,1750162240302,-150.0,0.00020139,2]
[366244925,1750162240311,-158.98,0.00021015,2]
[366244926,1750162240321,-500.0,0.00021809,2]
[366244927,1750162240331,-198.73,0.00021891,2]
[366244929,1750162240340,-238.47,0.00022766,2]
[366244931,1750162240350,-500.0,0.00023239,2]
[366244932,1750162240360,-157.7176516,0.00023239,2]
[366244933,1750162240369,-500.0,0.00023239,2]
[366244934,1750162240379,-500.0,0.00023239,2]
[366244935,1750162240388,-500.0,0.00023239,2]
[366244936,1750162240397,-500.0,0.00023239,2]
[366244937,1750162240407,-500.0,0.00023239,2]
[366244938,1750162240416,-500.0,0.00023239,2]
[366244939,1750162240426,-278.22,0.00023642,2]
[366244940,1750162240438,-171.13,0.00024108,2]
[366244941,1750162240448,-115.06277361,0.00024109,6]
[366244942,1750162240458,-460.0,0.00024109,6]
[366244943,1750162240468,-460.0,0.00024109,6]
[366244944,1750162240477,-460.0,0.00024109,6]
[366244945,1750162240488,-1737.74,0.00024109,6]
[366244946,1750162240497,-1057.55,0.00024109,6]
[366244947,1750162240507,-1072.23,0.00024109,6]
[366244948,1750162240517,-580.84,0.00024109,6]
[366244949,1750162240526,-460.0,0.00024109,6]
[366244950,1750162240535,-460.0,0.00024109,6]
[366244951,1750162240545,-460.0,0.00024109,6]
[366244952,1750162240554,-460.0,0.00024109,6]
[366244953,1750162240563,-460.0,0.00024109,6]
[366244954,1750162240573,-460.0,0.00024109,6]
[366244955,1750162240582,-5506.08,0.00024109,6]
[366244956,1750162240591,-390.0,0.00024109,6]
[366244957,1750162240600,-460.0,0.00024109,6]
[366244958,1750162240713,-151.0,0.00024109,7]
[366244959,1750162240726,-4722.03,0.00024109,6]
[366244960,1750162240737,-500.0,0.00024109,6]
[366244961,1750162240747,-503.24745646,0.00024109,6]
[366244962,1750162240757,-460.0,0.00024109,6]
[366244963,1750162240768,-460.0,0.00024109,6]
[366244964,1750162240778,-460.0,0.00024109,6]
[366244965,1750162240793,-820.61,0.00024109,6]
[366244966,1750162240803,-215.39622832,0.00024109,5]
[366244967,1750162240815,-460.0,0.00024109,6]
[366244968,1750162240826,-2306.19,0.00024109,6]
[366244969,1750162240836,-2306.19,0.00024109,6]
[366244970,1750162240847,-460.0,0.00024109,6]
[366244971,1750162240856,-2306.19,0.00024109,6]
[366244972,1750162240866,-2306.19,0.00024109,6]
[366244973,1750162240878,-460.0,0.00024109,6]
[366244974,1750162240888,-2306.19,0.00024109,6]
[366244975,1750162240898,-2306.19,0.00024109,6]
[366244976,1750162240908,-2306.19,0.00024109,6]
[366244977,1750162240918,-2306.19,0.00024109,6]
[366244978,1750162240927,-2306.19,0.00024109,6]
[366244979,1750162240937,-2306.19,0.00024109,6]
[366244980,1750162240947,-2306.19,0.00024109,6]
[366244981,1750162240956,-2306.19,0.00024109,6]
[366244982,1750162240966,-2306.19,0.00024109,6]
[366244983,1750162240975,-2306.19,0.00024109,6]
[366244984,1750162240985,-2306.19,0.00024109,6]
[366244985,1750162240994,-2306.19,0.00024109,6]
[366244986,1750162241004,-2306.19,0.00024109,6]
[366244987,1750162241014,-2306.19,0.00024109,6]
[366244988,1750162241023,-2306.19,0.00024109,6]
[366244989,1750162241033,-414.57656821,0.00024109,6]
[366244990,1750162241043,-2306.19,0.00024109,6]
[366244991,1750162241053,-2306.19,0.00024109,6]
[366244992,1750162241063,-460.0,0.00024109,6]
[366244993,1750162241072,-2306.19,0.00024109,6]
[366244994,1750162241082,-2306.19,0.00024109,6]
[366244995,1750162241091,-2306.23,0.00024109,6]
[366244996,1750162241101,-1189.99,0.00024109,6]
[366244997,1750162241110,-441.31271171,0.00024109,6]
[366244998,1750162241120,-5597.0,0.00024109,6]
[366244999,1750162241129,-322.39254373,0.00024109,6]
[366245000,1750162241138,-460.0,0.00024109,6]
[366245001,1750162241148,-460.0,0.00024109,6]
[366245002,1750162241157,-269.70899425,0.00024109,6]
[366245003,1750162241167,-294.71615008,0.00024109,6]
[366245004,1750162241178,-1531.91,0.00024109,6]
[366245005,1750162241188,-460.0,0.00024109,6]
[366245006,1750162241198,-460.0,0.00024109,6]
[366245007,1750162241208,-647.26,0.00024109,6]
[366245008,1750162241218,-5645.53,0.00024109,6]
[366245009,1750162241227,-460.0,0.00024109,6]
[366245010,1750162241236,-460.0,0.00024109,6]
[366245011,1750162241246,-1363.12,0.00024109,6]
[366245012,1750162241255,-460.0,0.00024109,6]
[366245013,1750162241264,-460.0,0.00024109,6]
[366245014,1750162241274,-460.0,0.00024109,6]
[366245015,1750162241283,-460.0,0.00024109,6]
[366245016,1750162241293,-429.84533029,0.00024109,6]
[366245017,1750162241302,-460.0,0.00024109,6]
[366245018,1750162241312,-7064.38,0.00024109,6]
[366245019,1750162241322,-561.26,0.00024109,6]
[366245020,1750162241331,-460.0,0.00024109,6]
[366245021,1750162241341,-480.63563063,0.00024109,6]
[366245022,1750162241350,-460.0,0.00024109,6]
[366245023,1750162241360,-1312.14,0.00024109,6]
[366245024,1750162241370,-460.0,0.00024109,6]
[366245025,1750162241379,-460.0,0.00024109,6]
[366245026,1750162241389,-294.425277,0.00024109,7]
[366245027,1750162241398,-460.0,0.00024109,6]
[366245028,1750162241409,-460.0,0.00024109,6]
[366245029,1750162241418,-462.72416509,0.00024109,6]
[366245030,1750162241428,-460.0,0.00024109,6]
[366245031,1750162241438,-460.0,0.00024109,6]
[366245032,1750162241448,-467.57673825,0.00024109,6]
[366245033,1750162241459,-2386.55,0.00024109,6]
[366245034,1750162241469,-426.72365716,0.00024109,6]
[366245035,1750162241479,-460.0,0.00024109,6]
[366245036,1750162241489,-460.0,0.00024109,6]
[366245037,1750162241498,-462.08,0.00024109,6]
[366245038,1750162241508,-460.0,0.00024109,6]
[366245040,1750162241517,-460.0,0.00024109,6]
[366245041,1750162241526,-468.64656016,0.00024109,6]
[366245042,1750162241536,-460.0,0.00024109,6]
[366245043,1750162241546,-460.0,0.00024109,6]
[366245045,1750162241555,-215.86299397,0.00024109,6]
[366245047,1750162241565,-460.0,0.00024109,6]
[366245049,1750162241575,-460.0,0.00024109,6]
[366245051,1750162241584,-460.0,0.00024109,6]
[366245053,1750162241593,-1921.76,0.00024109,6]
[366245055,1750162241603,-460.0,0.00024109,6]
[366245057,1750162241612,-473.13904783,0.00024109,6]
[366245059,1750162241622,-444.19914957,0.00024109,6]
[366245060,1750162241632,-460.0,0.00024109,6]
[366245062,1750162241641,-337.62674489,0.00024109,6]
[366245064,1750162241651,-260.439774,0.00024109,7]
[366245066,1750162241661,-460.0,0.00024109,6]
[366245068,1750162241671,-460.0,0.00024109,6]
[366245070,1750162241681,-460.0,0.00024109,6]